[Event "Titled Tuesday Blitz November 01 Early 2022"]
[White "De Souza, Cristiano Gomes"]
[Black "Grover, Sahaj"]
[WhiteFideId "2151758"]
[BlackFideId "5021103"]
[WhiteElo "2068"]
[BlackElo "2432"]
[Result "0-1"]
[Round "04"]
[TimeControl "180+1"]
[Date "2022.11.02"]
[WhiteClock "0:00:07"]
[BlackClock "0:00:34"]

1. d4 {[%clk 0:03:00]}  d5 {[%clk 0:02:56]} 2. c4 {[%clk 0:03:00]}  e6 {[%clk 0:02:54]} 3. Nf3 {[%clk 0:03:00]}  Nf6 {[%clk 0:02:54]} 4. Nc3 {[%clk 0:03:00]}  Bb4 {[%clk 0:02:54]} 5. Bg5 {[%clk 0:02:59]}  h6 {[%clk 0:02:51]} 6. Bxf6 {[%clk 0:02:59]}  Qxf6 {[%clk 0:02:52]} 7. Rc1 {[%clk 0:02:59]}  O-O {[%clk 0:02:49]} 8. Ne5 {[%clk 0:02:59]}  c5 {[%clk 0:02:37]} 9. a3 {[%clk 0:02:57]}  cxd4 {[%clk 0:02:32]} 10. Qxd4 {[%clk 0:02:56]}  Bd6 {[%clk 0:02:21]} 11. Nf3 {[%clk 0:02:48]}  Qxd4 {[%clk 0:02:09]} 12. Nxd4 {[%clk 0:02:48]}  dxc4 {[%clk 0:02:05]} 13. e4 {[%clk 0:02:46]}  a6 {[%clk 0:02:05]} 14. Bxc4 {[%clk 0:02:44]}  b5 {[%clk 0:02:05]} 15. Be2 {[%clk 0:02:43]}  Bb7 {[%clk 0:02:06]} 16. O-O {[%clk 0:02:40]}  Be5 {[%clk 0:01:51]} 17. Rfd1 {[%clk 0:02:37]}  g5 {[%clk 0:01:50]} 18. f3 {[%clk 0:02:34]}  Nc6 {[%clk 0:01:49]} 19. Nxc6 {[%clk 0:02:33]}  Bxc6 {[%clk 0:01:50]} 20. Kf1 {[%clk 0:02:29]}  Bxh2 {[%clk 0:01:47]} 21. Nd5 {[%clk 0:02:12]}  Bb7 {[%clk 0:01:35]} 22. Nf6+ {[%clk 0:02:06]}  Kg7 {[%clk 0:01:33]} 23. Ng4 {[%clk 0:02:02]}  Bf4 {[%clk 0:01:32]} 24. Rc3 {[%clk 0:01:58]}  Rfd8 {[%clk 0:01:30]} 25. Rcd3 {[%clk 0:01:58]}  Rxd3 {[%clk 0:01:26]} 26. Rxd3 {[%clk 0:01:58]}  Rc8 {[%clk 0:01:27]} 27. Rd7 {[%clk 0:01:49]}  Rc7 {[%clk 0:01:26]} 28. Rxc7 {[%clk 0:01:48]}  Bxc7 {[%clk 0:01:27]} 29. Ne3 {[%clk 0:01:43]}  Bb6 {[%clk 0:01:20]} 30. Nc2 {[%clk 0:01:40]}  Kf6 {[%clk 0:01:20]} 31. Bd3 {[%clk 0:01:37]}  Ke5 {[%clk 0:01:20]} 32. g3 {[%clk 0:01:35]}  h5 {[%clk 0:01:19]} 33. Ke2 {[%clk 0:01:28]}  f5 {[%clk 0:01:14]} 34. exf5 {[%clk 0:01:26]}  exf5 {[%clk 0:01:15]} 35. Ne3 {[%clk 0:01:23]}  Bxe3 {[%clk 0:01:11]} 36. Kxe3 {[%clk 0:01:23]}  f4+ {[%clk 0:01:10]} 37. gxf4+ {[%clk 0:01:22]}  gxf4+ {[%clk 0:01:11]} 38. Kf2 {[%clk 0:01:22]}  Kd4 {[%clk 0:01:11]} 39. Bf5 {[%clk 0:01:18]}  h4 {[%clk 0:01:07]} 40. Kg2 {[%clk 0:01:08]}  Ke3 {[%clk 0:01:07]} 41. Bg4 {[%clk 0:01:08]}  Ke2 {[%clk 0:00:56]} 42. b3 {[%clk 0:00:59]}  Kd3 {[%clk 0:00:39]} 43. Be6 {[%clk 0:00:44]}  Ke3 {[%clk 0:00:37]} 44. Bg4 {[%clk 0:00:40]}  Ke2 {[%clk 0:00:38]} 45. Bh5 {[%clk 0:00:25]}  h3+ {[%clk 0:00:33]} 46. Kxh3 {[%clk 0:00:24]}  Bxf3 {[%clk 0:00:34]} 47. Bf7 {[%clk 0:00:21]}  Bb7 {[%clk 0:00:33]} 48. Kh2 {[%clk 0:00:19]}  f3 {[%clk 0:00:34]} 49. Bh5 {[%clk 0:00:16]}  Ke1 {[%clk 0:00:32]} 50. Bxf3 {[%clk 0:00:05]}  Bxf3 {[%clk 0:00:33]} 51. Kg3 {[%clk 0:00:06]}  Bd5 {[%clk 0:00:33]} 52. Kf4 {[%clk 0:00:06]}  Bxb3 {[%clk 0:00:33]} 53. Ke5 {[%clk 0:00:06]}  Kd2 {[%clk 0:00:33]} 54. Ke4 {[%clk 0:00:07]}  Kc3 {[%clk 0:00:34]} 0-1


[Site "https://www.chess.com"]

[Event "Titled Tuesday Blitz November 01 Early 2022"]
[White "Eisa Mohmood, Alkhoori"]
[Black "Besedes, Danilo"]
[WhiteFideId "9316116"]
[BlackFideId "946796"]
[WhiteElo "1245"]
[BlackElo "2352"]
[Result "0-1"]
[Round "04"]
[TimeControl "180+1"]
[Date "2022.11.02"]
[WhiteClock "0:01:55"]
[BlackClock "0:02:11"]

1. e4 {[%clk 0:03:00]}  d6 {[%clk 0:03:00]} 2. d4 {[%clk 0:03:00]}  e5 {[%clk 0:03:00]} 3. Ne2 {[%clk 0:02:52]}  Nc6 {[%clk 0:02:50]} 4. Nbc3 {[%clk 0:02:50]}  Nf6 {[%clk 0:02:50]} 5. f3 {[%clk 0:02:49]}  Be7 {[%clk 0:02:49]} 6. Be3 {[%clk 0:02:50]}  O-O {[%clk 0:02:48]} 7. g4 {[%clk 0:02:50]}  Nd7 {[%clk 0:02:41]} 8. d5 {[%clk 0:02:41]}  Bh4+ {[%clk 0:02:39]} 9. Kd2 {[%clk 0:02:41]}  Ne7 {[%clk 0:02:34]} 10. Ng3 {[%clk 0:02:29]}  Ng6 {[%clk 0:02:34]} 11. Nf5 {[%clk 0:02:28]}  Bg5 {[%clk 0:02:34]} 12. Qe1 {[%clk 0:02:25]}  Bxe3+ {[%clk 0:02:30]} 13. Qxe3 {[%clk 0:02:26]}  Nc5 {[%clk 0:02:28]} 14. h4 {[%clk 0:02:23]}  Bxf5 {[%clk 0:02:22]} 15. gxf5 {[%clk 0:02:23]}  Nf4 {[%clk 0:02:22]} 16. Qf2 {[%clk 0:02:17]}  c6 {[%clk 0:02:21]} 17. dxc6 {[%clk 0:02:14]}  bxc6 {[%clk 0:02:21]} 18. Rd1 {[%clk 0:02:10]}  Qa5 {[%clk 0:02:20]} 19. Kc1 {[%clk 0:02:10]}  Rab8 {[%clk 0:02:20]} 20. Bc4 {[%clk 0:02:05]}  Qb4 {[%clk 0:02:12]} 21. Bb3 {[%clk 0:02:05]}  a5 {[%clk 0:02:12]} 22. Rxd6 {[%clk 0:01:58]}  Nxb3+ {[%clk 0:02:11]} 23. axb3 {[%clk 0:01:55]}  Qxd6 {[%clk 0:02:11]} 0-1


[Site "https://www.chess.com"]

[Event "Titled Tuesday Blitz November 01 Early 2022"]
[White "Fathy, Elameir"]
[Black "Alahakoon, Isuru"]
[WhiteFideId "10600396"]
[BlackFideId "9900993"]
[WhiteElo "2311"]
[BlackElo "2062"]
[Result "1/2-1/2"]
[Round "04"]
[TimeControl "180+1"]
[Date "2022.11.02"]
[WhiteClock "0:00:03"]
[BlackClock "0:00:12"]

1. d4 {[%clk 0:03:00]}  d5 {[%clk 0:02:53]} 2. c4 {[%clk 0:02:58]}  e6 {[%clk 0:02:52]} 3. Nf3 {[%clk 0:02:58]}  Nf6 {[%clk 0:02:51]} 4. g3 {[%clk 0:02:58]}  Bb4+ {[%clk 0:02:50]} 5. Nbd2 {[%clk 0:02:57]}  c5 {[%clk 0:02:48]} 6. cxd5 {[%clk 0:02:54]}  exd5 {[%clk 0:02:43]} 7. Bg2 {[%clk 0:02:52]}  O-O {[%clk 0:02:40]} 8. O-O {[%clk 0:02:51]}  c4 {[%clk 0:02:32]} 9. a3 {[%clk 0:02:43]}  Bd6 {[%clk 0:02:31]} 10. Nb1 {[%clk 0:02:41]}  h6 {[%clk 0:02:29]} 11. b3 {[%clk 0:02:18]}  b5 {[%clk 0:02:22]} 12. a4 {[%clk 0:02:18]}  Ba6 {[%clk 0:01:49]} 13. axb5 {[%clk 0:02:04]}  Bxb5 {[%clk 0:01:49]} 14. bxc4 {[%clk 0:02:04]}  Bxc4 {[%clk 0:01:47]} 15. Nfd2 {[%clk 0:02:00]}  Ba6 {[%clk 0:01:44]} 16. Nc3 {[%clk 0:01:58]}  Re8 {[%clk 0:01:40]} 17. Re1 {[%clk 0:01:54]}  Bb4 {[%clk 0:01:33]} 18. Bb2 {[%clk 0:01:43]}  Qb6 {[%clk 0:01:22]} 19. Nxd5 {[%clk 0:01:22]}  Nxd5 {[%clk 0:01:23]} 20. Bxd5 {[%clk 0:01:22]}  Bb7 {[%clk 0:01:17]} 21. Bxb7 {[%clk 0:01:21]}  Qxb7 {[%clk 0:01:18]} 22. Ba3 {[%clk 0:01:11]}  Bxa3 {[%clk 0:01:08]} 23. Rxa3 {[%clk 0:01:12]}  Nc6 {[%clk 0:01:08]} 24. e3 {[%clk 0:01:05]}  a5 {[%clk 0:01:05]} 25. Qf3 {[%clk 0:01:01]}  Qb4 {[%clk 0:01:02]} 26. Ra2 {[%clk 0:00:55]}  Rac8 {[%clk 0:00:58]} 27. Rb1 {[%clk 0:00:53]}  Qc3 {[%clk 0:00:47]} 28. Qd1 {[%clk 0:00:22]}  Nb4 {[%clk 0:00:22]} 29. Rxa5 {[%clk 0:00:22]}  Rxe3 {[%clk 0:00:18]} 30. Nf1 {[%clk 0:00:13]}  Rd3 {[%clk 0:00:16]} 31. Qa4 {[%clk 0:00:09]}  Rxd4 {[%clk 0:00:16]} 32. Ne3 {[%clk 0:00:06]}  Nc6 {[%clk 0:00:15]} 33. Qa3 {[%clk 0:00:03]}  Qxa5 {[%clk 0:00:14]} 34. Qb2 {[%clk 0:00:02]}  Qe5 {[%clk 0:00:13]} 35. Qc2 {[%clk 0:00:01]}  Qe6 {[%clk 0:00:12]} 36. Rc1 {[%clk 0:00:01]}  Rdd8 {[%clk 0:00:12]} 37. Qe2 {[%clk 0:00:01]}  Nd4 {[%clk 0:00:11]} 38. Qf1 {[%clk 0:00:02]}  Rxc1 {[%clk 0:00:11]} 39. Qxc1 {[%clk 0:00:02]}  Qc6 {[%clk 0:00:11]} 40. Qb2 {[%clk 0:00:01]}  Nf3+ {[%clk 0:00:11]} 41. Kf1 {[%clk 0:00:02]}  Rd2 {[%clk 0:00:10]} 42. Qb8+ {[%clk 0:00:01]}  Kh7 {[%clk 0:00:11]} 43. Qf4 {[%clk 0:00:01]}  g6 {[%clk 0:00:11]} 44. Qxf7+ {[%clk 0:00:01]}  Kh8 {[%clk 0:00:11]} 45. Qf8+ {[%clk 0:00:02]}  Kh7 {[%clk 0:00:12]} 46. Qf7+ {[%clk 0:00:02]}  Kh8 {[%clk 0:00:12]} 47. Qf8+ {[%clk 0:00:03]}  Kh7 {[%clk 0:00:12]} 48. Qf7+ {[%clk 0:00:03]} 1/2-1/2


[Site "https://www.chess.com"]

[Event "Titled Tuesday Blitz November 01 Early 2022"]
[White "Fernandez Siles, Luis"]
[Black "Shuvalov, Evgenij"]
[WhiteFideId "2209420"]
[BlackFideId "4187237"]
[WhiteElo "2186"]
[BlackElo "2049"]
[Result "0-1"]
[Round "04"]
[TimeControl "180+1"]
[Date "2022.11.02"]
[WhiteClock "0:00:01"]
[BlackClock "0:00:19"]

1. e4 {[%clk 0:03:00]}  e6 {[%clk 0:02:56]} 2. d4 {[%clk 0:03:00]}  d5 {[%clk 0:02:56]} 3. Nd2 {[%clk 0:03:00]}  c5 {[%clk 0:02:55]} 4. c3 {[%clk 0:03:01]}  Nc6 {[%clk 0:02:55]} 5. Ngf3 {[%clk 0:03:01]}  Nf6 {[%clk 0:02:53]} 6. Bd3 {[%clk 0:03:01]}  Be7 {[%clk 0:02:49]} 7. O-O {[%clk 0:02:58]}  O-O {[%clk 0:02:46]} 8. e5 {[%clk 0:02:36]}  Nd7 {[%clk 0:02:44]} 9. Re1 {[%clk 0:02:34]}  f6 {[%clk 0:02:28]} 10. exf6 {[%clk 0:02:32]}  Nxf6 {[%clk 0:02:29]} 11. Nf1 {[%clk 0:02:30]}  cxd4 {[%clk 0:02:25]} 12. cxd4 {[%clk 0:02:29]}  Qb6 {[%clk 0:02:25]} 13. b3 {[%clk 0:02:23]}  Bd7 {[%clk 0:02:21]} 14. Bb2 {[%clk 0:02:20]}  Rac8 {[%clk 0:01:52]} 15. Ne5 {[%clk 0:02:07]}  Be8 {[%clk 0:01:39]} 16. Re3 {[%clk 0:01:53]}  Bh5 {[%clk 0:01:27]} 17. Qb1 {[%clk 0:00:56]}  Nb4 {[%clk 0:01:20]} 18. Ng3 {[%clk 0:00:51]}  Nxd3 {[%clk 0:01:17]} 19. Qxd3 {[%clk 0:00:49]}  Be8 {[%clk 0:01:13]} 20. Rae1 {[%clk 0:00:47]}  Bb4 {[%clk 0:01:08]} 21. Rc1 {[%clk 0:00:40]}  Rxc1+ {[%clk 0:01:05]} 22. Bxc1 {[%clk 0:00:41]}  Bb5 {[%clk 0:01:00]} 23. Qd1 {[%clk 0:00:39]}  Rc8 {[%clk 0:00:56]} 24. Bb2 {[%clk 0:00:33]}  Qc7 {[%clk 0:00:51]} 25. h3 {[%clk 0:00:17]}  Qc2 {[%clk 0:00:49]} 26. Qf3 {[%clk 0:00:01]}  Qxb2 {[%clk 0:00:42]} 27. Ng4 {[%clk 0:00:01]}  Qxd4 {[%clk 0:00:19]} 0-1


[Site "https://www.chess.com"]

[Event "Titled Tuesday Blitz November 01 Early 2022"]
[White "Garv Gaur"]
[Black "Kanyamarala, Tarun"]
[WhiteFideId "45030839"]
[BlackFideId "45004714"]
[WhiteElo "1960"]
[BlackElo "2307"]
[Result "0-1"]
[Round "04"]
[TimeControl "180+1"]
[Date "2022.11.02"]
[WhiteClock "0:00:13"]
[BlackClock "0:00:52"]

1. d4 {[%clk 0:03:00]}  Nf6 {[%clk 0:02:52]} 2. Nf3 {[%clk 0:03:00]}  d5 {[%clk 0:02:50]} 3. c4 {[%clk 0:03:00]}  e6 {[%clk 0:02:49]} 4. g3 {[%clk 0:02:59]}  dxc4 {[%clk 0:02:43]} 5. Bg2 {[%clk 0:02:59]}  c5 {[%clk 0:02:43]} 6. O-O {[%clk 0:02:58]}  Nc6 {[%clk 0:02:42]} 7. Qa4 {[%clk 0:02:55]}  Bd7 {[%clk 0:02:41]} 8. Qxc4 {[%clk 0:02:52]}  b5 {[%clk 0:02:41]} 9. Qa4 {[%clk 0:02:52]}  bxa4 {[%clk 0:02:38]} 10. dxc5 {[%clk 0:01:56]}  Bxc5 {[%clk 0:02:31]} 11. Rd1 {[%clk 0:01:55]}  O-O {[%clk 0:02:27]} 12. Nc3 {[%clk 0:01:55]}  Qb6 {[%clk 0:02:12]} 13. e3 {[%clk 0:01:52]}  Bb4 {[%clk 0:01:56]} 14. Nxa4 {[%clk 0:01:50]}  Qa5 {[%clk 0:01:54]} 15. b3 {[%clk 0:01:50]}  Rfd8 {[%clk 0:01:48]} 16. Bb2 {[%clk 0:01:38]}  Be8 {[%clk 0:01:45]} 17. a3 {[%clk 0:01:37]}  Rxd1+ {[%clk 0:01:34]} 18. Rxd1 {[%clk 0:01:38]}  Be7 {[%clk 0:01:34]} 19. Bc3 {[%clk 0:01:28]}  Qc7 {[%clk 0:01:32]} 20. b4 {[%clk 0:01:25]}  Rd8 {[%clk 0:01:29]} 21. Rc1 {[%clk 0:01:24]}  Nxb4 {[%clk 0:01:22]} 22. Bd2 {[%clk 0:01:14]}  Qd7 {[%clk 0:01:16]} 23. axb4 {[%clk 0:00:42]}  Qxa4 {[%clk 0:01:15]} 24. Rb1 {[%clk 0:00:29]}  Qa2 {[%clk 0:01:13]} 25. Rd1 {[%clk 0:00:28]}  Bxb4 {[%clk 0:01:11]} 26. Nd4 {[%clk 0:00:24]}  Bxd2 {[%clk 0:01:08]} 27. Bf1 {[%clk 0:00:23]}  Ne4 {[%clk 0:01:03]} 28. Bd3 {[%clk 0:00:21]}  Nc3 {[%clk 0:00:56]} 29. Rf1 {[%clk 0:00:20]}  g6 {[%clk 0:00:52]} 30. h4 {[%clk 0:00:13]}  e5 {[%clk 0:00:52]} 0-1


[Site "https://www.chess.com"]

[Event "Titled Tuesday Blitz November 01 Early 2022"]
[White "Gharibyan, Mamikon"]
[Black "Kirillov, Dmitry"]
[WhiteFideId "13308300"]
[BlackFideId "34180572"]
[WhiteElo "2378"]
[BlackElo "2095"]
[Result "1-0"]
[Round "04"]
[TimeControl "180+1"]
[Date "2022.11.02"]
[WhiteClock "0:00:54"]
[BlackClock "0:00:03"]

1. Nf3 {[%clk 0:03:00]}  d5 {[%clk 0:02:51]} 2. g3 {[%clk 0:03:00]}  g6 {[%clk 0:02:52]} 3. Bg2 {[%clk 0:02:59]}  Bg7 {[%clk 0:02:52]} 4. d4 {[%clk 0:03:00]}  Nf6 {[%clk 0:02:52]} 5. O-O {[%clk 0:03:00]}  O-O {[%clk 0:02:53]} 6. c3 {[%clk 0:03:01]}  c6 {[%clk 0:02:53]} 7. Bf4 {[%clk 0:02:59]}  Bf5 {[%clk 0:02:54]} 8. Nbd2 {[%clk 0:02:57]}  Nbd7 {[%clk 0:02:55]} 9. Nh4 {[%clk 0:02:57]}  Be6 {[%clk 0:02:52]} 10. e4 {[%clk 0:02:40]}  dxe4 {[%clk 0:02:51]} 11. Nxe4 {[%clk 0:02:41]}  Nxe4 {[%clk 0:02:51]} 12. Bxe4 {[%clk 0:02:42]}  Nf6 {[%clk 0:02:46]} 13. Bg2 {[%clk 0:02:41]}  Bd5 {[%clk 0:02:43]} 14. Nf3 {[%clk 0:02:41]}  Nd7 {[%clk 0:02:30]} 15. Qe2 {[%clk 0:02:30]}  Re8 {[%clk 0:02:28]} 16. Rfd1 {[%clk 0:02:25]}  b5 {[%clk 0:02:24]} 17. Ne5 {[%clk 0:02:24]}  Bxg2 {[%clk 0:02:22]} 18. Kxg2 {[%clk 0:02:23]}  Qc8 {[%clk 0:02:16]} 19. a4 {[%clk 0:02:20]}  a6 {[%clk 0:02:15]} 20. Qe4 {[%clk 0:02:14]}  Nxe5 {[%clk 0:01:59]} 21. Bxe5 {[%clk 0:01:59]}  e6 {[%clk 0:01:44]} 22. h4 {[%clk 0:01:51]}  f5 {[%clk 0:01:36]} 23. Qe3 {[%clk 0:01:48]}  Qd7 {[%clk 0:01:32]} 24. Re1 {[%clk 0:01:40]}  Qd5+ {[%clk 0:01:01]} 25. Qf3 {[%clk 0:01:39]}  Kf7 {[%clk 0:00:47]} 26. Bxg7 {[%clk 0:01:36]}  Kxg7 {[%clk 0:00:46]} 27. Re5 {[%clk 0:01:36]}  Qxf3+ {[%clk 0:00:45]} 28. Kxf3 {[%clk 0:01:37]}  Kf6 {[%clk 0:00:45]} 29. Rc5 {[%clk 0:01:35]}  Rac8 {[%clk 0:00:23]} 30. axb5 {[%clk 0:01:30]}  cxb5 {[%clk 0:00:21]} 31. Rxa6 {[%clk 0:01:25]}  Rxc5 {[%clk 0:00:20]} 32. dxc5 {[%clk 0:01:26]}  Rc8 {[%clk 0:00:21]} 33. b4 {[%clk 0:01:25]}  Ke5 {[%clk 0:00:19]} 34. Ke3 {[%clk 0:01:25]}  Kd5 {[%clk 0:00:19]} 35. Kd3 {[%clk 0:01:17]}  Rd8 {[%clk 0:00:15]} 36. Rb6 {[%clk 0:00:59]}  e5 {[%clk 0:00:12]} 37. Rxb5 {[%clk 0:00:59]}  e4+ {[%clk 0:00:13]} 38. Ke2 {[%clk 0:00:54]}  Kc4 {[%clk 0:00:13]} 39. Rb7 {[%clk 0:00:54]}  Kxc3 {[%clk 0:00:13]} 40. c6 {[%clk 0:00:54]}  Rc8 {[%clk 0:00:04]} 41. b5 {[%clk 0:00:53]}  Kc4 {[%clk 0:00:04]} 42. c7 {[%clk 0:00:53]}  Kc5 {[%clk 0:00:04]} 43. b6 {[%clk 0:00:53]}  Kc6 {[%clk 0:00:03]} 44. Rb8 {[%clk 0:00:54]}  Kd7 {[%clk 0:00:03]} 45. Ke3 {[%clk 0:00:54]}  h6 {[%clk 0:00:03]} 46. Kf4 {[%clk 0:00:54]} 1-0


[Site "https://www.chess.com"]

[Event "Titled Tuesday Blitz November 01 Early 2022"]
[White "Goltseva, Ekaterina"]
[Black "Sarkar, Justin"]
[WhiteFideId "24173770"]
[BlackFideId "2010011"]
[WhiteElo "2200"]
[BlackElo "2250"]
[Result "1-0"]
[Round "04"]
[TimeControl "180+1"]
[Date "2022.11.02"]
[WhiteClock "0:01:02"]
[BlackClock "0:00:01"]

1. e4 {[%clk 0:02:49]}  e5 {[%clk 0:02:52]} 2. Nf3 {[%clk 0:02:49]}  Nc6 {[%clk 0:02:51]} 3. Bb5 {[%clk 0:02:49]}  a6 {[%clk 0:02:51]} 4. Ba4 {[%clk 0:02:47]}  Nf6 {[%clk 0:02:50]} 5. O-O {[%clk 0:02:47]}  Be7 {[%clk 0:02:48]} 6. Re1 {[%clk 0:02:44]}  b5 {[%clk 0:02:47]} 7. Bb3 {[%clk 0:02:44]}  d6 {[%clk 0:02:47]} 8. c3 {[%clk 0:02:44]}  Bg4 {[%clk 0:02:41]} 9. h3 {[%clk 0:02:40]}  Bh5 {[%clk 0:02:40]} 10. a4 {[%clk 0:02:35]}  O-O {[%clk 0:02:34]} 11. d3 {[%clk 0:02:34]}  Rb8 {[%clk 0:02:22]} 12. Nbd2 {[%clk 0:02:31]}  Nd7 {[%clk 0:02:18]} 13. g4 {[%clk 0:02:26]}  Bg6 {[%clk 0:02:17]} 14. Nf1 {[%clk 0:02:24]}  Nc5 {[%clk 0:02:11]} 15. Bd5 {[%clk 0:02:16]}  Qd7 {[%clk 0:02:05]} 16. axb5 {[%clk 0:02:11]}  axb5 {[%clk 0:02:05]} 17. b4 {[%clk 0:02:09]}  Ne6 {[%clk 0:02:02]} 18. Ng3 {[%clk 0:02:07]}  Nf4 {[%clk 0:01:53]} 19. Bxf4 {[%clk 0:02:01]}  exf4 {[%clk 0:01:54]} 20. Ne2 {[%clk 0:01:47]}  Ne5 {[%clk 0:00:54]} 21. Nxf4 {[%clk 0:01:43]}  c6 {[%clk 0:00:50]} 22. Bb3 {[%clk 0:01:40]}  Ra8 {[%clk 0:00:31]} 23. Qe2 {[%clk 0:01:36]}  Nxg4 {[%clk 0:00:06]} 24. Rxa8 {[%clk 0:01:08]}  Rxa8 {[%clk 0:00:05]} 25. hxg4 {[%clk 0:01:06]}  Qxg4+ {[%clk 0:00:04]} 26. Ng2 {[%clk 0:01:06]}  Bh5 {[%clk 0:00:04]} 27. Nd4 {[%clk 0:01:06]}  Qh3 {[%clk 0:00:01]} 28. Qe3 {[%clk 0:01:02]} 1-0


[Site "https://www.chess.com"]

[Event "Titled Tuesday Blitz November 01 Early 2022"]
[White "Goriatchkin, Jouri"]
[Black "Rose, Felix"]
[WhiteFideId "4120183"]
[BlackFideId "5105722"]
[WhiteElo "1861"]
[BlackElo "2039"]
[Result "0-1"]
[Round "04"]
[TimeControl "180+1"]
[Date "2022.11.02"]
[WhiteClock "0:00:01"]
[BlackClock "0:01:22"]

1. d4 {[%clk 0:03:00]}  Nf6 {[%clk 0:02:59]} 2. c4 {[%clk 0:03:00]}  e6 {[%clk 0:02:59]} 3. Nf3 {[%clk 0:03:00]}  d5 {[%clk 0:02:59]} 4. Nc3 {[%clk 0:02:58]}  Be7 {[%clk 0:02:59]} 5. Bf4 {[%clk 0:02:57]}  O-O {[%clk 0:02:59]} 6. e3 {[%clk 0:02:58]}  b6 {[%clk 0:02:58]} 7. cxd5 {[%clk 0:02:58]}  Nxd5 {[%clk 0:02:57]} 8. Nxd5 {[%clk 0:02:58]}  Qxd5 {[%clk 0:02:58]} 9. a3 {[%clk 0:02:58]}  c5 {[%clk 0:02:55]} 10. dxc5 {[%clk 0:02:58]}  Qxd1+ {[%clk 0:02:53]} 11. Rxd1 {[%clk 0:02:58]}  bxc5 {[%clk 0:02:52]} 12. Bc4 {[%clk 0:02:52]}  Nd7 {[%clk 0:02:47]} 13. O-O {[%clk 0:02:52]}  Nb6 {[%clk 0:02:47]} 14. Be2 {[%clk 0:02:45]}  Bb7 {[%clk 0:02:44]} 15. Ne5 {[%clk 0:02:46]}  Rfd8 {[%clk 0:02:42]} 16. Rxd8+ {[%clk 0:02:39]}  Rxd8 {[%clk 0:02:41]} 17. Rd1 {[%clk 0:02:39]}  Rxd1+ {[%clk 0:02:40]} 18. Bxd1 {[%clk 0:02:40]}  f6 {[%clk 0:02:40]} 19. Nf3 {[%clk 0:02:28]}  e5 {[%clk 0:02:40]} 20. Bg3 {[%clk 0:02:29]}  Bd5 {[%clk 0:02:38]} 21. Nd2 {[%clk 0:02:27]}  Kf7 {[%clk 0:02:31]} 22. e4 {[%clk 0:02:27]}  Bc6 {[%clk 0:02:24]} 23. f3 {[%clk 0:02:23]}  Na4 {[%clk 0:02:21]} 24. Nc4 {[%clk 0:02:12]}  Bb5 {[%clk 0:02:10]} 25. Bb3 {[%clk 0:01:46]}  Ke8 {[%clk 0:02:08]} 26. Kf2 {[%clk 0:01:30]}  Kd7 {[%clk 0:02:07]} 27. Ke1 {[%clk 0:01:30]}  Kc6 {[%clk 0:02:06]} 28. Kd2 {[%clk 0:01:22]}  a6 {[%clk 0:02:05]} 29. Bf2 {[%clk 0:01:05]}  Bd8 {[%clk 0:02:02]} 30. Bxa4 {[%clk 0:00:56]}  Bxa4 {[%clk 0:02:00]} 31. Kc3 {[%clk 0:00:56]}  Bc7 {[%clk 0:01:53]} 32. b3 {[%clk 0:00:53]}  Bb5 {[%clk 0:01:53]} 33. Ne3 {[%clk 0:00:42]}  Ba5+ {[%clk 0:01:48]} 34. Kc2 {[%clk 0:00:25]}  Kd6 {[%clk 0:01:40]} 35. Nf5+ {[%clk 0:00:24]}  Kc6 {[%clk 0:01:37]} 36. Nxg7 {[%clk 0:00:19]}  Bf1 {[%clk 0:01:37]} 37. g3 {[%clk 0:00:17]}  Bg2 {[%clk 0:01:37]} 38. Kd3 {[%clk 0:00:16]}  Bxf3 {[%clk 0:01:37]} 39. Ne6 {[%clk 0:00:15]}  Bb6 {[%clk 0:01:30]} 40. Nf8 {[%clk 0:00:15]}  h5 {[%clk 0:01:28]} 41. Nh7 {[%clk 0:00:15]}  Bd8 {[%clk 0:01:28]} 42. Nf8 {[%clk 0:00:11]}  Be7 {[%clk 0:01:23]} 43. Ng6 {[%clk 0:00:11]}  Bd6 {[%clk 0:01:21]} 44. Nh4 {[%clk 0:00:11]}  Bg4 {[%clk 0:01:21]} 45. Nf5 {[%clk 0:00:09]}  Bxf5 {[%clk 0:01:20]} 46. exf5 {[%clk 0:00:10]}  Kb5 {[%clk 0:01:19]} 47. h3 {[%clk 0:00:08]}  a5 {[%clk 0:01:19]} 48. g4 {[%clk 0:00:07]}  hxg4 {[%clk 0:01:19]} 49. hxg4 {[%clk 0:00:07]}  a4 {[%clk 0:01:19]} 50. Kc3 {[%clk 0:00:07]}  axb3 {[%clk 0:01:20]} 51. Kxb3 {[%clk 0:00:08]}  c4+ {[%clk 0:01:20]} 52. Kc3 {[%clk 0:00:06]}  Bxa3 {[%clk 0:01:20]} 53. Be3 {[%clk 0:00:05]}  Be7 {[%clk 0:01:21]} 54. Bd2 {[%clk 0:00:03]}  Bb4+ {[%clk 0:01:20]} 55. Kc2 {[%clk 0:00:03]}  Bxd2 {[%clk 0:01:21]} 56. Kxd2 {[%clk 0:00:04]}  Kc5 {[%clk 0:01:22]} 57. Kc3 {[%clk 0:00:02]}  Kd5 {[%clk 0:01:22]} 58. Kd2 {[%clk 0:00:02]}  Ke4 {[%clk 0:01:22]} 59. g5 {[%clk 0:00:01]}  Kxf5 {[%clk 0:01:22]} 0-1


[Site "https://www.chess.com"]